[Event "12ème open de Salon"]
[Site "Salon de Provence, France"]
[Date "2022.07.12"]
[Round "6.4"]
[White "Lauret, Patrick"]
[Black "Tramarin, Matteo"]
[Result "0-1"]
[TimeControl "1 h 30 min + 30 s"]
[WhiteElo "1670"]
[BlackElo "1501"]

1. e4 {[%clk 01:30:54]} {[%emt 00:00:06]} Nf6 {[%clk 01:30:47]} {[%emt
00:00:13]} 2. Nc3 {[%clk 01:30:35]} {[%emt 00:00:49]} d6 {[%clk 01:30:31]}
{[%emt 00:00:45]} 3. Nf3 {[%clk 01:30:57]} {[%emt 00:00:09]} g6 {[%clk
01:30:29]} {[%emt 00:00:32]} 4. Bc4 {[%clk 01:30:55]} {[%emt 00:00:31]} Bg7
{[%clk 01:30:36]} {[%emt 00:00:23]} 5. d3 {[%clk 01:31:15]} {[%emt 00:00:11]}
O-O {[%clk 01:30:30]} {[%emt 00:00:35]} 6. O-O {[%clk 01:31:42]} {[%emt
00:00:03]} Bg4 {[%clk 01:30:46]} {[%emt 00:00:14]} 7. h3 {[%clk 01:32:10]}
{[%emt 00:00:03]} Bxf3 {[%clk 01:30:40]} {[%emt 00:00:35]} 8. Qxf3 {[%clk
01:32:33]} {[%emt 00:00:07]} Nbd7 {[%clk 01:30:59]} {[%emt 00:00:11]} 9. Bb3
{[%clk 01:28:49]} {[%emt 00:04:13]} c5 {[%clk 01:30:00]} {[%emt 00:01:29]} 10.
Be3 {[%clk 01:25:30]} {[%emt 00:03:49]} Rb8 {[%clk 01:28:59]} {[%emt 00:01:30]}
11. a4 {[%clk 01:25:35]} {[%emt 00:00:26]} a6 {[%clk 01:28:38]} {[%emt
00:00:51]} 12. a5 {[%clk 01:25:13]} {[%emt 00:00:52]} Ne5 {[%clk 01:27:15]}
{[%emt 00:01:53]} 13. Qe2 {[%clk 01:24:55]} {[%emt 00:00:48]} Nc6 {[%clk
01:27:29]} {[%emt 00:00:16]} 14. f4 {[%clk 01:23:08]} {[%emt 00:02:17]} Nxa5
{[%clk 01:26:42]} {[%emt 00:01:16]} 15. Ba2 {[%clk 01:22:07]} {[%emt 00:01:31]}
Nd7 {[%clk 01:26:24]} {[%emt 00:00:48]} 16. f5 {[%clk 01:18:30]} {[%emt
00:04:08]} Nc6 {[%clk 01:25:44]} {[%emt 00:01:09]} 17. Nd5 {[%clk 01:15:32]}
{[%emt 00:03:27]} Nf6 {[%clk 01:21:56]} {[%emt 00:04:20]} 18. c3 {[%clk
01:14:15]} {[%emt 00:01:47]} Nxd5 {[%clk 01:21:29]} {[%emt 00:00:56]} 19. Bxd5
{[%clk 01:14:30]} {[%emt 00:00:16]} Qd7 {[%clk 01:21:27]} {[%emt 00:00:32]} 20.
fxg6 {[%clk 01:08:33]} {[%emt 00:06:27]} hxg6 {[%clk 01:20:05]} {[%emt
00:01:52]} 21. h4 {[%clk 01:08:11]} {[%emt 00:00:52]} e6 {[%clk 01:19:05]}
{[%emt 00:01:30]} 22. Ba2 {[%clk 01:08:25]} {[%emt 00:00:15]} Ne7 {[%clk
01:13:54]} {[%emt 00:05:40]} 23. h5 {[%clk 01:05:16]} {[%emt 00:03:39]} Kh7
{[%clk 01:13:09]} {[%emt 00:01:15]} 24. Qg4 {[%clk 01:05:26]} {[%emt 00:00:20]}
Rbd8 {[%clk 01:03:32]} {[%emt 00:10:07]} 25. hxg6+ {[%clk 01:04:16]} {[%emt
00:01:41]} Nxg6 {[%clk 01:03:46]} {[%emt 00:00:15]} 26. Rf3 {[%clk 01:04:35]}
{[%emt 00:00:10]} Rh8 {[%clk 01:02:42]} {[%emt 00:01:35]} 27. Raf1 {[%clk
01:03:44]} {[%emt 00:01:21]} Ne5 {[%clk 00:59:03]} {[%emt 00:04:09]} 28. Rh3+
{[%clk 01:02:56]} {[%emt 00:01:18]} Kg8 {[%clk 00:58:48]} {[%emt 00:00:45]} 29.
Rxh8+ {[%clk 01:01:09]} {[%emt 00:02:18]} Kxh8 {[%clk 00:59:09]} {[%emt
00:00:09]} 30. Qh3+ {[%clk 00:59:41]} {[%emt 00:01:57]} Kg8 {[%clk 00:59:10]}
{[%emt 00:00:29]} 31. d4 {[%clk 00:54:08]} {[%emt 00:06:03]} cxd4 {[%clk
00:56:56]} {[%emt 00:02:44]} 32. cxd4 {[%clk 00:54:37]} {[%emt 00:00:01]} Ng6
{[%clk 00:56:57]} {[%emt 00:00:29]} 33. Rf3 {[%clk 00:48:33]} {[%emt 00:06:34]}
d5 {[%clk 00:55:39]} {[%emt 00:01:49]} 34. exd5 {[%clk 00:44:37]} {[%emt
00:04:25]} exd5 {[%clk 00:55:41]} {[%emt 00:00:28]} 35. Qh5 {[%clk 00:44:26]}
{[%emt 00:00:41]} Qe6 {[%clk 00:51:24]} {[%emt 00:04:48]} 36. Rh3 {[%clk
00:43:28]} {[%emt 00:01:28]} Qe4 {[%clk 00:50:45]} {[%emt 00:01:09]} 37. Qh7+
{[%clk 00:42:58]} {[%emt 00:01:01]} Kf8 {[%clk 00:50:40]} {[%emt 00:00:35]} 38.
Bh6 {[%clk 00:43:04]} {[%emt 00:00:23]} Qxd4+ {[%clk 00:50:39]} {[%emt
00:00:30]} 39. Kh2 {[%clk 00:36:31]} {[%emt 00:06:51]} Qxb2 {[%clk 00:47:22]}
{[%emt 00:04:00]} 40. Re3 {[%clk 00:29:58]} {[%emt 00:07:03]} Bxh6 {[%clk
00:43:42]} {[%emt 00:04:09]} 41. Qxh6+ {[%clk 00:30:27]} {[%emt 00:00:02]} Qg7
{[%clk 00:43:59]} {[%emt 00:00:12]} 42. Qg5 {[%clk 00:29:31]} {[%emt 00:01:26]}
f6 {[%clk 00:43:49]} {[%emt 00:00:40]} 43. Rf3 {[%clk 00:29:07]} {[%emt
00:00:54]} Qc7+ {[%clk 00:41:57]} {[%emt 00:02:21]} 44. Kg1 {[%clk 00:28:50]}
{[%emt 00:00:48]} Qb6+ {[%clk 00:41:37]} {[%emt 00:00:50]} 45. Kh1 {[%clk
00:28:59]} {[%emt 00:00:21]} Kg7 {[%clk 00:41:09]} {[%emt 00:00:57]} 46. Qf5
{[%clk 00:28:17]} {[%emt 00:01:12]} Qd4 {[%clk 00:38:04]} {[%emt 00:03:35]} 47.
Bb3 {[%clk 00:22:02]} {[%emt 00:06:46]} Qa1+ {[%clk 00:30:38]} {[%emt
00:07:56]} 48. Rf1 {[%clk 00:21:59]} {[%emt 00:00:32]} Qe5 {[%clk 00:29:35]}
{[%emt 00:01:33]} 49. Qf3 {[%clk 00:18:50]} {[%emt 00:03:40]} Rh8+ {[%clk
00:24:18]} {[%emt 00:05:47]} 50. Kg1 {[%emt 00:01:00]} Qh2+ {[%emt 00:00:11]}
51. Kf2 {[%clk 00:17:53]} {[%emt 00:00:15]} Rh4 {[%clk 00:24:42]} {[%emt
00:00:06]} 52. Ke1 {[%clk 00:17:44]} {[%emt 00:00:40]} Qe5+ {[%clk 00:24:29]}
{[%emt 00:00:43]} 53. Kd1 {[%clk 00:16:58]} {[%emt 00:01:17]} Rd4+ {[%clk
00:23:43]} {[%emt 00:01:16]} 54. Kc2 {[%clk 00:16:24]} {[%emt 00:01:05]} Qe4+
{[%clk 00:19:50]} {[%emt 00:04:23]} 55. Kc1 {[%clk 00:16:29]} {[%emt 00:00:25]}
Qxf3 {[%clk 00:19:01]} {[%emt 00:01:18]} 56. Rxf3 {[%clk 00:16:57]} {[%emt
00:00:02]} Ne5 {[%clk 00:19:21]} {[%emt 00:00:10]} 57. Rg3+ {[%clk 00:17:17]}
{[%emt 00:00:10]} Kf7 {[%clk 00:19:24]} {[%emt 00:00:27]} 58. Bc2 {[%clk
00:17:45]} {[%emt 00:00:02]} Rg4 {[%clk 00:19:09]} {[%emt 00:00:46]} 59. Rc3
{[%clk 00:17:37]} {[%emt 00:00:38]} Nc4 {[%clk 00:18:38]} {[%emt 00:01:01]} 60.
g3 {[%clk 00:17:43]} {[%emt 00:00:24]} b5 {[%clk 00:18:02]} {[%emt 00:01:05]}
61. Rd3 {[%clk 00:18:12]} {[%emt 00:00:02]} d4 {[%clk 00:17:26]} {[%emt
00:01:06]} 62. Rf3 {[%clk 00:18:24]} {[%emt 00:00:17]} Ne5 {[%clk 00:17:27]}
{[%emt 00:00:29]} 63. Ra3 {[%clk 00:18:06]} {[%emt 00:00:48]} d3 {[%clk
00:16:43]} {[%emt 00:01:15]} 64. Bb3+ {[%clk 00:18:35]} Nc4 {[%clk 00:16:19]}
{[%emt 00:00:53]} 65. Rxa6 {[%clk 00:18:31]} {[%emt 00:00:33]} Rxg3 {[%clk
00:16:42]} {[%emt 00:00:09]} 66. Rd6 {[%clk 00:17:58]} {[%emt 00:01:02]} Rg1+
{[%clk 00:16:20]} {[%emt 00:00:52]} 67. Kd1 {[%clk 00:17:21]} {[%emt 00:01:09]}
0-1

[Event "12ème open de Salon"]
[Site "Salon de Provence, France"]
[Date "2022.07.12"]
[Round "6.5"]
[White "Piquemal, Maxence"]
[Black "Roganova, Maxime"]
[Result "1/2-1/2"]
[TimeControl "1 h 30 min + 30 s"]
[WhiteElo "1668"]
[BlackElo "1471"]

1. d4 {[%clk 01:30:55]} {[%emt 00:00:04]} Nf6 {[%clk 01:30:57]} {[%emt
00:00:03]} 2. c4 {[%clk 01:31:21]} {[%emt 00:00:04]} g6 {[%clk 01:31:24]}
{[%emt 00:00:04]} 3. Nc3 {[%clk 01:31:39]} {[%emt 00:00:11]} Bg7 {[%clk
01:31:46]} {[%emt 00:00:07]} 4. e4 {[%clk 01:31:56]} {[%emt 00:00:14]} d6
{[%clk 01:32:12]} {[%emt 00:00:05]} 5. Nf3 {[%clk 01:32:09]} {[%emt 00:00:17]}
O-O {[%clk 01:32:33]} {[%emt 00:00:09]} 6. Be2 {[%clk 01:32:35]} {[%emt
00:00:04]} e5 {[%clk 01:32:49]} {[%emt 00:00:13]} 7. dxe5 {[%clk 01:30:42]}
{[%emt 00:02:24]} dxe5 {[%clk 01:33:08]} {[%emt 00:00:11]} 8. Qxd8 {[%clk
01:31:05]} {[%emt 00:00:07]} Rxd8 {[%clk 01:33:32]} {[%emt 00:00:06]} 9. Bg5
{[%clk 01:31:24]} {[%emt 00:00:11]} Re8 {[%clk 01:32:55]} {[%emt 00:01:06]} 10.
Nd5 {[%clk 01:30:15]} {[%emt 00:01:40]} Nxd5 {[%clk 01:33:09]} {[%emt
00:00:17]} 11. cxd5 {[%clk 01:30:33]} {[%emt 00:00:12]} c6 {[%clk 01:32:43]}
{[%emt 00:00:56]} 12. Bc4 {[%clk 01:27:42]} {[%emt 00:03:21]} cxd5 {[%clk
01:31:34]} {[%emt 00:01:38]} 13. Bxd5 {[%clk 01:27:55]} {[%emt 00:00:17]} Nc6
{[%clk 01:31:57]} {[%emt 00:00:08]} 14. a3 {[%clk 01:18:19]} {[%emt 00:10:06]}
Bg4 {[%clk 01:25:59]} {[%emt 00:06:27]} 15. Be3 {[%clk 01:03:37]} {[%emt
00:15:12]} Ne7 {[%clk 01:16:07]} {[%emt 00:10:22]} 16. Bb3 {[%clk 00:56:50]}
{[%emt 00:07:17]} Nc6 {[%clk 01:16:24]} {[%emt 00:00:14]} 17. Ng5 {[%clk
00:50:26]} {[%emt 00:06:54]} Nd8 {[%clk 01:09:14]} {[%emt 00:07:40]} 18. f3
{[%clk 00:38:17]} {[%emt 00:12:39]} Be6 {[%clk 01:09:30]} {[%emt 00:00:14]} 19.
Ba4 {[%clk 00:29:36]} {[%emt 00:09:11]} Nc6 {[%clk 01:07:44]} {[%emt 00:02:15]}
20. Rc1 {[%clk 00:26:29]} {[%emt 00:03:37]} h6 {[%clk 01:07:25]} {[%emt
00:00:49]} 21. Bxc6 {[%clk 00:25:08]} {[%emt 00:01:52]} bxc6 {[%clk 01:07:46]}
{[%emt 00:00:09]} 22. Nxe6 {[%clk 00:25:32]} {[%emt 00:00:06]} Rxe6 {[%clk
01:08:10]} {[%emt 00:00:06]} 23. Ke2 {[%clk 00:25:05]} {[%emt 00:00:57]} Kf8
{[%clk 01:06:15]} {[%emt 00:02:25]} 24. Rc2 {[%clk 00:19:54]} {[%emt 00:05:42]}
Ke8 {[%clk 01:05:53]} {[%emt 00:00:52]} 25. Rhc1 {[%clk 00:17:04]} {[%emt
00:03:20]} Kd7 {[%clk 01:05:55]} {[%emt 00:00:29]} 26. Bc5 {[%clk 00:16:29]}
{[%emt 00:01:05]} Bf8 {[%clk 01:05:39]} {[%emt 00:00:46]} 27. Rd1+ {[%clk
00:15:59]} {[%emt 00:00:59]} Kc7 {[%clk 01:05:48]} {[%emt 00:00:20]} 28. Bxf8
{[%clk 00:16:15]} {[%emt 00:00:15]} Rxf8 {[%clk 01:06:12]} {[%emt 00:00:07]} 29.
Rcd2 {[%clk 00:16:18]} {[%emt 00:00:28]} Re7 {[%emt 00:03:10]} 30. Rd6 {[%clk
00:13:44]} Rb8 {[%clk 01:04:53]} {[%emt 00:02:12]} 31. b4 {[%clk 00:12:48]}
{[%emt 00:01:26]} Rb6 {[%clk 01:03:04]} {[%emt 00:02:18]} 32. R6d3 {[%clk
00:11:53]} {[%emt 00:01:25]} a5 {[%clk 01:02:39]} {[%emt 00:00:56]} 33. bxa5
{[%clk 00:09:44]} {[%emt 00:02:39]} Ra6 {[%clk 01:03:00]} {[%emt 00:00:09]} 34.
Rb3 {[%clk 00:09:11]} {[%emt 00:01:02]} Rxa5 {[%clk 01:03:13]} {[%emt
00:00:18]} 35. Rdb1 {[%clk 00:09:16]} {[%emt 00:00:26]} Kd6 {[%emt 00:00:55]}
36. Rc1 {[%emt 00:00:15]} Kd7 37. Rcb1 {[%clk 00:08:57]} Ke8 {[%clk 00:00:00]}
1/2-1/2

[Event "12ème open de Salon"]
[Site "Salon de Provence, France"]
[Date "2022.07.12"]
[Round "6.6"]
[White "Jullien, Patrick"]
[Black "Bonchristiani, Pierre"]
[Result "0-1"]
[TimeControl "1 h 30 min + 30 s"]
[WhiteElo "1548"]
[BlackElo "1382"]

1. e4 {[%clk 01:30:55]} {[%emt 00:00:03]} e5 {[%clk 01:30:19]} {[%emt
00:00:42]} 2. Nf3 {[%clk 01:31:12]} {[%emt 00:00:13]} Nc6 {[%clk 01:30:44]}
{[%emt 00:00:05]} 3. Bb5 {[%clk 01:31:03]} {[%emt 00:00:39]} a6 {[%clk
01:30:32]} {[%emt 00:00:42]} 4. Ba4 {[%clk 01:31:25]} {[%emt 00:00:08]} Nf6
{[%clk 01:30:18]} {[%emt 00:00:43]} 5. O-O {[%clk 01:31:28]} {[%emt 00:00:28]}
b5 {[%clk 01:30:20]} {[%emt 00:00:28]} 6. Bb3 {[%clk 01:31:46]} {[%emt
00:00:11]} Bc5 {[%clk 01:29:59]} {[%emt 00:00:50]} 7. d3 {[%clk 01:28:11]}
{[%emt 00:04:07]} h6 {[%clk 01:29:49]} {[%emt 00:00:40]} 8. a4 {[%clk
01:26:49]} {[%emt 00:01:51]} Rb8 {[%clk 01:26:08]} {[%emt 00:04:11]} 9. axb5
{[%clk 01:25:46]} {[%emt 00:01:33]} axb5 {[%clk 01:26:14]} {[%emt 00:00:23]} 10.
Nc3 {[%clk 01:24:27]} {[%emt 00:01:49]} d6 {[%clk 01:26:03]} {[%emt 00:00:42]}
11. Nd5 {[%clk 01:19:48]} {[%emt 00:05:08]} Bg4 {[%clk 01:24:31]} {[%emt
00:02:03]} 12. c3 {[%clk 01:18:38]} {[%emt 00:01:40]} O-O {[%clk 01:19:36]}
{[%emt 00:05:25]} 13. Be3 {[%clk 01:17:39]} {[%emt 00:01:28]} b4 {[%clk
01:06:18]} {[%emt 00:13:47]} 14. Bc4 {[%clk 01:06:13]} {[%emt 00:11:56]} Bxe3
{[%clk 00:57:23]} {[%emt 00:09:26]} 15. Nxe3 {[%clk 00:55:26]} {[%emt
00:11:17]} Bh5 {[%clk 00:56:27]} {[%emt 00:01:25]} 16. h3 {[%clk 00:53:08]}
{[%emt 00:02:49]} bxc3 {[%clk 00:46:57]} {[%emt 00:10:00]} 17. bxc3 {[%clk
00:53:29]} {[%emt 00:00:09]} Rb2 {[%clk 00:46:23]} {[%emt 00:01:04]} 18. g4
{[%clk 00:52:58]} {[%emt 00:01:02]} Bg6 {[%clk 00:45:22]} {[%emt 00:01:31]} 19.
Qc1 {[%clk 00:46:34]} {[%emt 00:06:54]} Qb8 {[%clk 00:38:01]} {[%emt 00:07:49]}
20. Nh4 {[%clk 00:40:24]} {[%emt 00:06:41]} Kh8 {[%clk 00:28:58]} {[%emt
00:09:34]} 21. Rb1 {[%clk 00:31:43]} {[%emt 00:09:10]} Rxb1 {[%clk 00:24:33]}
{[%emt 00:04:56]} 22. Qxb1 {[%clk 00:31:58]} {[%emt 00:00:15]} Ne7 {[%clk
00:19:28]} {[%emt 00:05:34]} 23. Qa2 {[%clk 00:27:42]} {[%emt 00:04:46]} Qc8
{[%clk 00:16:35]} {[%emt 00:03:24]} 24. Rb1 {[%clk 00:24:26]} {[%emt 00:03:46]}
h5 {[%clk 00:15:14]} {[%emt 00:01:51]} 25. f3 {[%clk 00:23:28]} {[%emt
00:01:28]} Qd7 {[%clk 00:10:23]} {[%emt 00:05:22]} 26. Rb7 {[%clk 00:20:32]}
{[%emt 00:03:25]} Qc6 {[%clk 00:09:04]} {[%emt 00:01:49]} 27. Ra7 {[%clk
00:14:54]} {[%emt 00:06:08]} Qb6 {[%clk 00:08:25]} {[%emt 00:01:10]} 28. Kf2
{[%clk 00:14:22]} {[%emt 00:01:02]} Kh7 {[%clk 00:06:15]} {[%emt 00:02:40]} 29.
Ke2 {[%clk 00:13:28]} {[%emt 00:01:24]} Rb8 {[%clk 00:04:48]} {[%emt 00:01:57]}
30. Nc2 {[%clk 00:08:54]} {[%emt 00:05:03]} hxg4 {[%clk 00:04:16]} {[%emt
00:01:02]} 31. hxg4 {[%clk 00:09:11]} {[%emt 00:00:14]} Qg1 {[%clk 00:04:32]}
{[%emt 00:00:14]} 32. Nf5 {[%clk 00:06:46]} {[%emt 00:02:54]} Bxf5 {[%clk
00:04:14]} {[%emt 00:00:49]} 33. gxf5 {[%clk 00:06:59]} {[%emt 00:00:17]} Nh5
{[%clk 00:04:17]} {[%emt 00:00:27]} 34. Kd2 {[%clk 00:03:25]} {[%emt 00:04:04]}
Rb1 {[%clk 00:04:15]} {[%emt 00:00:32]} 35. Qxb1 {[%clk 00:01:54]} {[%emt
00:02:02]} Qxb1 {[%clk 00:04:35]} {[%emt 00:00:10]} 36. Rxc7 {[%clk 00:02:09]}
{[%emt 00:00:15]} Ng8 {[%clk 00:04:12]} {[%emt 00:00:53]} 37. Bxf7 {[%clk
00:01:57]} {[%emt 00:00:41]} Ng3 {[%clk 00:03:55]} {[%emt 00:00:49]} 38. Bg6+
{[%clk 00:02:05]} {[%emt 00:00:22]} Kh6 {[%clk 00:04:14]} {[%emt 00:00:10]} 39.
Rc8 {[%clk 00:02:13]} {[%emt 00:00:22]} Nf6 {[%clk 00:04:07]} {[%emt 00:00:37]}
40. Rh8+ {[%clk 00:02:29]} {[%emt 00:00:14]} Kg5 {[%clk 00:04:32]} {[%emt
00:00:05]} 41. Rh3 {[%clk 00:02:02]} {[%emt 00:00:57]} Qg1 {[%clk 00:03:52]}
{[%emt 00:01:09]} 42. Ne1 {[%emt 00:01:56]} Qf2+ {[%clk 00:03:52]} {[%emt
00:00:01]} 43. Nc2 {[%emt 00:00:06]} Qg1 {[%emt 00:00:08]} 44. Ne1 {[%emt
00:00:01]} Qf2+ {[%emt 00:00:02]} 45. Kd1 {[%emt 00:00:04]} Qe2+ 46. Nc2 {[%emt
00:00:14]} Qf2 {[%emt 00:00:08]} 0-1

[Event "12ème open de Salon"]
[Site "Salon de Provence, France"]
[Date "2022.07.12"]
[Round "6.7"]
[White "Roganova, Jeremy"]
[Black "Frailinu, Jean-Bernard"]
[Result "0-1"]
[TimeControl "1 h 30 min + 30 s"]
[WhiteElo "1191"]
[BlackElo "1349"]

1. e4 {[%clk 01:30:58]} {[%emt 00:00:01]} e6 {[%clk 01:30:49]} {[%emt
00:00:11]} 2. d4 {[%clk 01:31:24]} {[%emt 00:00:04]} d5 {[%clk 01:31:08]}
{[%emt 00:00:12]} 3. e5 {[%clk 01:31:36]} {[%emt 00:00:18]} c5 {[%clk
01:31:20]} {[%emt 00:00:17]} 4. c3 {[%clk 01:32:01]} {[%emt 00:00:06]} Nc6
{[%clk 01:31:40]} {[%emt 00:00:09]} 5. Nf3 {[%clk 01:32:23]} {[%emt 00:00:08]}
Nge7 {[%clk 01:31:36]} {[%emt 00:00:34]} 6. Bd3 {[%clk 01:31:32]} {[%emt
00:01:21]} Qb6 {[%clk 01:31:44]} {[%emt 00:00:21]} 7. O-O {[%clk 01:30:54]}
{[%emt 00:01:09]} Bd7 {[%clk 01:31:50]} {[%emt 00:00:24]} 8. Bc2 {[%clk
01:31:07]} {[%emt 00:00:18]} a5 {[%clk 01:29:20]} {[%emt 00:02:59]} 9. a4
{[%clk 01:30:55]} {[%emt 00:00:42]} cxd4 {[%clk 01:28:38]} {[%emt 00:01:12]} 10.
cxd4 {[%clk 01:31:06]} {[%emt 00:00:19]} Nb4 {[%clk 01:28:29]} {[%emt
00:00:38]} 11. Nc3 {[%clk 01:30:30]} {[%emt 00:01:06]} Nxc2 {[%clk 01:28:39]}
{[%emt 00:00:21]} 12. Qxc2 {[%clk 01:30:51]} {[%emt 00:00:08]} Nc6 {[%clk
01:27:44]} {[%emt 00:01:26]} 13. Nb5 {[%clk 01:30:10]} {[%emt 00:01:11]} Rc8
{[%clk 01:27:23]} {[%emt 00:00:51]} 14. Qd3 {[%clk 01:29:38]} {[%emt 00:01:02]}
Nb4 {[%clk 01:27:15]} {[%emt 00:00:38]} 15. Qe2 {[%clk 01:28:45]} {[%emt
00:01:22]} Bxb5 {[%clk 01:22:27]} {[%emt 00:05:20]} 16. Qxb5+ {[%clk 01:27:56]}
{[%emt 00:01:18]} Qxb5 {[%clk 01:22:25]} {[%emt 00:00:32]} 17. axb5 {[%clk
01:28:17]} {[%emt 00:00:08]} b6 {[%clk 01:22:37]} {[%emt 00:00:19]} 18. Bd2
{[%clk 01:27:44]} {[%emt 00:01:03]} Be7 {[%clk 01:22:34]} {[%emt 00:00:32]} 19.
Bxb4 {[%clk 01:27:37]} {[%emt 00:00:37]} Bxb4 {[%clk 01:22:49]} {[%emt
00:00:15]} 20. Rfd1 {[%clk 01:26:36]} {[%emt 00:01:33]} O-O {[%clk 01:22:59]}
{[%emt 00:00:20]} 21. Ne1 {[%clk 01:26:33]} {[%emt 00:00:33]} Rc4 {[%clk
01:22:36]} {[%emt 00:00:52]} 22. Rac1 {[%clk 01:26:51]} {[%emt 00:00:11]} Rfc8
{[%clk 01:22:40]} {[%emt 00:00:28]} 23. Rxc4 {[%clk 01:26:43]} {[%emt
00:00:38]} Rc7 {[%emt 00:00:17]} 24. Rc5 Rxc5 {[%clk 01:22:53]} 25. Kf1 {[%clk
01:26:35]} {[%emt 00:00:38]} Rc4 {[%clk 01:23:02]} 26. Ke2 {[%clk 01:26:17]}
{[%emt 00:01:09]} g6 {[%clk 01:23:02]} 27. Ke3 {[%clk 01:26:37]} {[%emt
00:00:41]} Kg7 {[%clk 01:23:14]} 28. f4 {[%clk 01:26:41]} {[%emt 00:00:44]} Be7
{[%clk 01:22:59]} 29. Nd3 {[%clk 01:25:52]} {[%emt 00:02:03]} Rb4 {[%clk
01:22:51]} 30. Kd2 {[%clk 01:23:38]} Rxb5 {[%clk 01:22:09]} 31. Rc1 {[%emt
00:02:16]} a4 32. Ra1 {[%clk 01:23:05]} Ra5 {[%clk 01:22:07]} {[%emt 00:00:30]}
33. Kc3 {[%clk 01:22:52]} {[%emt 00:00:44]} b5 {[%clk 01:22:19]} {[%emt
00:00:17]} 34. Nb4 {[%clk 01:22:30]} {[%emt 00:00:53]} Ra8 {[%clk 01:21:42]}
{[%emt 00:01:06]} 35. Nc2 {[%clk 01:20:22]} {[%emt 00:02:38]} Rc8+ {[%clk
01:21:45]} {[%emt 00:00:27]} 36. Kd3 {[%clk 01:20:45]} {[%emt 00:00:08]} h6
{[%clk 01:21:22]} {[%emt 00:00:52]} 37. g4 {[%clk 01:20:01]} {[%emt 00:01:15]}
f5 {[%clk 01:20:27]} {[%emt 00:01:24]} 38. h3 {[%clk 01:18:10]} {[%emt
00:02:22]} Bh4 {[%clk 01:19:36]} {[%emt 00:01:21]} 39. Nb4 {[%clk 01:15:42]}
{[%emt 00:02:58]} Rc4 {[%clk 01:17:26]} {[%emt 00:02:39]} 40. Nc2 {[%clk
01:15:35]} {[%emt 00:00:38]} Bg3 {[%clk 01:16:28]} {[%emt 00:01:28]} 41. Rf1
{[%clk 01:15:49]} {[%emt 00:00:15]} Rc7 {[%clk 01:15:59]} {[%emt 00:00:59]} 42.
Rf3 {[%clk 01:14:13]} {[%emt 00:02:07]} Bh4 {[%clk 01:16:07]} {[%emt 00:00:20]}
43. Na3 {[%clk 01:13:30]} {[%emt 00:01:14]} Rb7 {[%clk 01:16:18]} {[%emt
00:00:18]} 44. Rf1 {[%clk 01:13:09]} {[%emt 00:00:52]} Be7 {[%clk 01:16:26]}
{[%emt 00:00:22]} 45. Kc3 {[%clk 01:11:48]} {[%emt 00:01:51]} b4+ {[%clk
01:16:42]} {[%emt 00:00:14]} 46. Kc2 {[%clk 01:11:15]} {[%emt 00:01:04]} bxa3
{[%clk 01:16:59]} {[%emt 00:00:13]} 47. bxa3 {[%clk 01:11:34]} {[%emt
00:00:12]} Rb3 {[%emt 00:03:16]} 48. Ra1 {[%clk 01:09:13]} Rxh3 {[%clk
01:17:15]} {[%emt 00:00:19]} 49. gxf5 {[%clk 01:09:22]} {[%emt 00:00:20]} gxf5
{[%clk 01:16:38]} {[%emt 00:01:07]} 50. Rg1+ {[%clk 01:09:32]} {[%emt
00:00:21]} Kf7 {[%clk 01:16:56]} {[%emt 00:00:11]} 51. Rb1 {[%clk 01:08:39]}
{[%emt 00:01:23]} Rxa3 {[%clk 01:17:06]} {[%emt 00:00:19]} 52. Rh1 {[%clk
01:08:52]} {[%emt 00:00:18]} Kg7 {[%clk 01:16:54]} {[%emt 00:00:42]} 53. Rg1+
{[%clk 01:09:01]} {[%emt 00:00:21]} Kh7 {[%clk 01:17:11]} {[%emt 00:00:12]} 54.
Rb1 {[%clk 01:09:20]} {[%emt 00:00:12]} Rb3 {[%clk 01:17:05]} {[%emt 00:00:35]}
55. Ra1 {[%clk 01:09:17]} {[%emt 00:00:34]} Rb7 {[%clk 01:17:06]} {[%emt
00:00:29]} 56. Rxa4 {[%clk 01:09:34]} {[%emt 00:00:13]} Rc7+ {[%clk 01:16:57]}
{[%emt 00:00:39]} 57. Kd2 {[%clk 01:09:56]} {[%emt 00:00:09]} Bh4 {[%clk
01:16:37]} {[%emt 00:00:48]} 58. Ra1 {[%clk 01:09:51]} {[%emt 00:00:36]} Bg3
{[%clk 01:16:26]} {[%emt 00:00:40]} 59. Rf1 {[%clk 01:10:12]} {[%emt 00:00:10]}
h5 {[%clk 01:15:53]} {[%emt 00:01:02]} 60. Ke2 {[%clk 01:10:01]} {[%emt
00:00:41]} h4 {[%clk 01:16:12]} {[%emt 00:00:11]} 61. Kf3 {[%clk 01:10:15]}
{[%emt 00:00:16]} Rc3+ {[%clk 01:16:15]} {[%emt 00:00:26]} 62. Kg2 {[%clk
01:10:39]} {[%emt 00:00:08]} Rd3 {[%clk 01:13:35]} {[%emt 00:03:10]} 63. Rc1
{[%clk 01:06:04]} {[%emt 00:05:04]} Rxd4 {[%clk 01:13:06]} {[%emt 00:00:59]} 64.
Rc7+ {[%clk 01:06:16]} {[%emt 00:00:19]} Kg6 {[%clk 01:13:05]} {[%emt
00:00:30]} 65. Rc8 {[%clk 01:06:21]} {[%emt 00:00:26]} Rxf4 {[%clk 01:11:04]}
{[%emt 00:02:31]} 66. Rg8+ {[%clk 01:06:31]} {[%emt 00:00:21]} Kf7 {[%clk
01:11:07]} {[%emt 00:00:27]} 67. Rh8 {[%clk 01:06:39]} {[%emt 00:00:22]} Re4
{[%clk 01:11:13]} {[%emt 00:00:24]} 68. Rh7+ {[%clk 01:06:52]} {[%emt
00:00:17]} Ke8 {[%clk 01:11:16]} {[%emt 00:00:26]} 69. Rh8+ {[%clk 00:59:55]}
{[%emt 00:07:27]} Kd7 {[%clk 01:10:18]} {[%emt 00:01:28]} 0-1